[Event "*** Titled Tuesday Blitz"]
[Site "Chess.com"]
[Date "2020.12.29"]
[Round "7"]
[White "Logman74"]
[Black "Leonid_Starozhilov"]
[Result "0-1"]
[WhiteElo "2387"]
[BlackElo "2638"]
[TimeControl "180+1"]
[EndTime "11:16:56 PST"]
[Termination "Leonid_Starozhilov won on time"]

1. e4 {[%clk 0:03:00.5]} 1... g6 {[%clk 0:02:57.5]} 2. d4 {[%clk 0:02:59.9]}
2... Bg7 {[%clk 0:02:56]} 3. Nc3 {[%clk 0:03:00]} 3... d6 {[%clk 0:02:56.4]} 4.
f4 {[%clk 0:02:59.8]} 4... Nf6 {[%clk 0:02:56.5]} 5. Nf3 {[%clk 0:03:00]} 5...
O-O {[%clk 0:02:57]} 6. Bd3 {[%clk 0:03:00.2]} 6... Na6 {[%clk 0:02:56.7]} 7.
O-O {[%clk 0:03:00]} 7... c5 {[%clk 0:02:57]} 8. d5 {[%clk 0:03:00.5]} 8... Bg4
{[%clk 0:02:57.2]} 9. Kh1 {[%clk 0:02:51.2]} 9... Rb8 {[%clk 0:02:49.9]} 10. h3
{[%clk 0:02:49]} 10... Bxf3 {[%clk 0:02:49.7]} 11. Qxf3 {[%clk 0:02:48]} 11...
Nb4 {[%clk 0:02:50.2]} 12. a3 {[%clk 0:02:43.6]} 12... Nxd3 {[%clk 0:02:47.6]}
13. cxd3 {[%clk 0:02:43.7]} 13... b5 {[%clk 0:02:47.8]} 14. Bd2 {[%clk
0:02:29.6]} 14... Nd7 {[%clk 0:02:35]} 15. b4 {[%clk 0:02:19]} 15... a5 {[%clk
0:02:27.8]} 16. Rab1 {[%clk 0:02:14.1]} 16... cxb4 {[%clk 0:02:16.5]} 17. axb4
{[%clk 0:02:13.1]} 17... a4 {[%clk 0:02:17.4]} 18. Rbc1 {[%clk 0:02:07.3]} 18...
Qb6 {[%clk 0:02:11.4]} 19. Be3 {[%clk 0:02:04.9]} 19... Qb7 {[%clk 0:01:48.7]}
20. d4 {[%clk 0:02:02]} 20... Nb6 {[%clk 0:01:33.7]} 21. Nxb5 {[%clk 0:01:58.2]}
21... Nxd5 {[%clk 0:01:31.8]} 22. Nxd6 {[%clk 0:01:31.3]} 22... Qxb4 {[%clk
0:01:12.9]} 23. Nc4 {[%clk 0:00:57.9]} 23... Nxe3 {[%clk 0:01:01.1]} 24. Qxe3
{[%clk 0:00:57.3]} 24... Rfc8 {[%clk 0:01:01.1]} 25. Qd3 {[%clk 0:00:53.2]}
25... Qb3 {[%clk 0:00:40.5]} 26. Rc3 {[%clk 0:00:50.6]} 26... Qb5 {[%clk
0:00:40.7]} 27. e5 {[%clk 0:00:47.6]} 27... Rd8 {[%clk 0:00:36.7]} 28. Rfc1
{[%clk 0:00:43.1]} 28... e6 {[%clk 0:00:33.5]} 29. Qc2 {[%clk 0:00:38.1]} 29...
Bf8 {[%clk 0:00:24.9]} 30. Rd1 {[%clk 0:00:32.1]} 30... Bb4 {[%clk 0:00:19.2]}
31. Rg3 {[%clk 0:00:29.2]} 31... Rbc8 {[%clk 0:00:19.2]} 32. Rc1 {[%clk
0:00:18.9]} 32... Rxd4 {[%clk 0:00:18.5]} 33. Nd6 {[%clk 0:00:01.6]} 33... Rxc2
{[%clk 0:00:16.2]} 0-1

[Event "*** Titled Tuesday Blitz"]
[Site "Chess.com"]
[Date "2020.12.29"]
[Round "7"]
[White "GMBenjaminBok"]
[Black "ElGasanov"]
[Result "0-1"]
[WhiteElo "2869"]
[BlackElo "2779"]
[TimeControl "180+1"]
[EndTime "11:17:01 PST"]
[Termination "ElGasanov won by resignation"]

1. d4 {[%clk 0:03:00.9]} 1... e6 {[%clk 0:02:57.3]} 2. c4 {[%clk 0:02:56.8]}
2... Bb4+ {[%clk 0:02:54.8]} 3. Nd2 {[%clk 0:02:56.3]} 3... Nf6 {[%clk 0:02:48]}
4. Nf3 {[%clk 0:02:54.1]} 4... O-O {[%clk 0:02:46.4]} 5. a3 {[%clk 0:02:53.6]}
5... Be7 {[%clk 0:02:46.5]} 6. e4 {[%clk 0:02:53.3]} 6... d6 {[%clk 0:02:47.1]}
7. Be2 {[%clk 0:02:53]} 7... Nfd7 {[%clk 0:02:47.4]} 8. b4 {[%clk 0:02:42.1]}
8... a5 {[%clk 0:02:28.5]} 9. Bb2 {[%clk 0:02:39.2]} 9... e5 {[%clk 0:02:18.7]}
10. O-O {[%clk 0:02:05.9]} 10... exd4 {[%clk 0:01:58.8]} 11. Nxd4 {[%clk
0:02:06.8]} 11... Nc6 {[%clk 0:01:59.1]} 12. Nxc6 {[%clk 0:01:48.3]} 12... bxc6
{[%clk 0:02:00]} 13. Nb3 {[%clk 0:01:48.7]} 13... axb4 {[%clk 0:01:55.8]} 14.
axb4 {[%clk 0:01:49.6]} 14... Rb8 {[%clk 0:01:52.7]} 15. Na5 {[%clk 0:01:22.8]}
15... Bb7 {[%clk 0:01:48.7]} 16. Qc2 {[%clk 0:00:52]} 16... Ba8 {[%clk
0:01:42.4]} 17. b5 {[%clk 0:00:38.1]} 17... cxb5 {[%clk 0:01:41.2]} 18. cxb5
{[%clk 0:00:39]} 18... Nc5 {[%clk 0:01:40.5]} 19. f3 {[%clk 0:00:27.6]} 19...
Bf6 {[%clk 0:01:14.5]} 20. e5 {[%clk 0:00:21.3]} 20... Be7 {[%clk 0:01:04.5]}
21. Rad1 {[%clk 0:00:17.6]} 21... Re8 {[%clk 0:00:52.1]} 22. Rfe1 {[%clk
0:00:16.7]} 22... Qc8 {[%clk 0:00:47.5]} 23. Bc4 {[%clk 0:00:13.3]} 23... Bf8
{[%clk 0:00:28.7]} 24. Nc6 {[%clk 0:00:08.9]} 24... Bxc6 {[%clk 0:00:27.4]} 25.
bxc6 {[%clk 0:00:09.8]} 25... Rb6 {[%clk 0:00:19]} 26. Bd5 {[%clk 0:00:09]}
26... Na6 {[%clk 0:00:17.7]} 27. Ba1 {[%clk 0:00:05.7]} 27... Nb4 {[%clk
0:00:16]} 28. Qc4 {[%clk 0:00:06]} 28... Nxd5 {[%clk 0:00:15.9]} 29. Qxd5 {[%clk
0:00:06.9]} 29... Qf5 {[%clk 0:00:13.8]} 30. Kf1 {[%clk 0:00:05.2]} 30... Rbb8
{[%clk 0:00:06.5]} 31. Qe4 {[%clk 0:00:03.4]} 31... Qh5 {[%clk 0:00:04.5]} 32.
Kg1 {[%clk 0:00:03]} 32... dxe5 {[%clk 0:00:04.8]} 33. Bxe5 {[%clk 0:00:01.9]}
33... Bd6 {[%clk 0:00:04.4]} 34. Qf4 {[%clk 0:00:01.5]} 34... Rxe5 {[%clk
0:00:03.7]} 0-1

[Event "*** Titled Tuesday Blitz"]
[Site "Chess.com"]
[Date "2020.12.29"]
[Round "7"]
[White "1random"]
[Black "Neftegor"]
[Result "1-0"]
[WhiteElo "2438"]
[BlackElo "2553"]
[TimeControl "180+1"]
[EndTime "11:17:01 PST"]
[Termination "1random won by checkmate"]

1. e4 {[%clk 0:02:59.4]} 1... e6 {[%clk 0:02:59]} 2. d4 {[%clk 0:02:45.8]} 2...
d5 {[%clk 0:02:58.6]} 3. Nd2 {[%clk 0:02:45.2]} 3... Be7 {[%clk 0:02:57.4]} 4.
e5 {[%clk 0:02:41.6]} 4... c5 {[%clk 0:02:55.9]} 5. c3 {[%clk 0:02:34.3]} 5...
cxd4 {[%clk 0:02:55.1]} 6. cxd4 {[%clk 0:02:35.2]} 6... Qb6 {[%clk 0:02:55]} 7.
Ndf3 {[%clk 0:02:24.3]} 7... Nc6 {[%clk 0:02:46.1]} 8. Bd3 {[%clk 0:02:23.2]}
8... Bb4+ {[%clk 0:02:40.7]} 9. Bd2 {[%clk 0:02:21.9]} 9... Nxd4 {[%clk
0:02:23.1]} 10. Nxd4 {[%clk 0:02:14.3]} 10... Qxd4 {[%clk 0:02:22.6]} 11. Bb5+
{[%clk 0:01:37]} 11... Kd8 {[%clk 0:02:08.8]} 12. Nf3 {[%clk 0:01:14.3]} 12...
Qxb2 {[%clk 0:02:02.7]} 13. O-O {[%clk 0:01:03.5]} 13... Bxd2 {[%clk 0:01:56.9]}
14. Rb1 {[%clk 0:01:03.6]} 14... Qc3 {[%clk 0:01:55.5]} 15. Nxd2 {[%clk
0:00:47.3]} 15... Qxe5 {[%clk 0:01:54]} 16. Nc4 {[%clk 0:00:30.2]} 16... Qc7
{[%clk 0:01:49.8]} 17. Qg4 {[%clk 0:00:30.3]} 17... f6 {[%clk 0:01:33.1]} 18.
Rfd1 {[%clk 0:00:21.1]} 18... Nh6 {[%clk 0:01:26.1]} 19. Qd4 {[%clk 0:00:19.2]}
19... Ke7 {[%clk 0:01:22.5]} 20. Ne3 {[%clk 0:00:06.5]} 20... Kf7 {[%clk
0:01:16.9]} 21. Rbc1 {[%clk 0:00:02.1]} 21... Qe5 {[%clk 0:01:15.8]} 22. Qxe5
{[%clk 0:00:01.9]} 22... fxe5 {[%clk 0:01:15.2]} 23. Rc7+ {[%clk 0:00:02.8]}
23... Kf6 {[%clk 0:01:15]} 24. Rdc1 {[%clk 0:00:02.4]} 24... Nf5 {[%clk
0:01:11.5]} 25. Ng4+ {[%clk 0:00:02.6]} 25... Kg5 {[%clk 0:01:08.7]} 26. Nxe5
{[%clk 0:00:03.1]} 26... Kf4 {[%clk 0:01:02.4]} 27. Re1 {[%clk 0:00:02.7]} 27...
Rf8 {[%clk 0:00:53.1]} 28. g3+ {[%clk 0:00:02.6]} 28... Kg5 {[%clk 0:00:53.2]}
29. h4+ {[%clk 0:00:02]} 29... Kf6 {[%clk 0:00:51]} 30. Ng4+ {[%clk 0:00:02.4]}
30... Kg6 {[%clk 0:00:50.8]} 31. Ne5+ {[%clk 0:00:03.1]} 31... Kh6 {[%clk
0:00:44.3]} 32. Kg2 {[%clk 0:00:01.8]} 32... Nd4 {[%clk 0:00:38.3]} 33. Bd3
{[%clk 0:00:02]} 33... g6 {[%clk 0:00:35.5]} 34. Ng4+ {[%clk 0:00:01.9]} 34...
Kh5 {[%clk 0:00:33.2]} 35. Ne5 {[%clk 0:00:01.4]} 35... Kh6 {[%clk 0:00:24.9]}
36. g4 {[%clk 0:00:02]} 36... Nc6 {[%clk 0:00:16.3]} 37. g5+ {[%clk 0:00:02.3]}
37... Kh5 {[%clk 0:00:16.4]} 38. Rxh7# {[%clk 0:00:03.2]} 1-0

[Event "*** Titled Tuesday Blitz"]
[Site "Chess.com"]
[Date "2020.12.29"]
[Round "7"]
[White "TristanCalistri"]
[Black "KononenkoD"]
[Result "0-1"]
[WhiteElo "2284"]
[BlackElo "2461"]
[TimeControl "180+1"]
[EndTime "11:17:02 PST"]
[Termination "KononenkoD won by resignation"]

1. e4 {[%clk 0:03:00.9]} 1... c6 {[%clk 0:02:59.5]} 2. Nf3 {[%clk 0:02:58.8]}
2... d5 {[%clk 0:03:00.4]} 3. Nc3 {[%clk 0:02:59.3]} 3... Bg4 {[%clk 0:03:00.4]}
4. d4 {[%clk 0:02:58.9]} 4... dxe4 {[%clk 0:02:56.4]} 5. Nxe4 {[%clk 0:02:58.6]}
5... Nd7 {[%clk 0:02:52.8]} 6. h3 {[%clk 0:02:55.9]} 6... Bxf3 {[%clk 0:02:50]}
7. Qxf3 {[%clk 0:02:56.8]} 7... Ngf6 {[%clk 0:02:48.8]} 8. c3 {[%clk 0:02:55.4]}
8... e5 {[%clk 0:02:41.9]} 9. Nxf6+ {[%clk 0:02:50.8]} 9... Qxf6 {[%clk
0:02:41]} 10. Qxf6 {[%clk 0:02:45.8]} 10... gxf6 {[%clk 0:02:41.9]} 11. Be3
{[%clk 0:02:33.9]} 11... h5 {[%clk 0:02:34.5]} 12. O-O-O {[%clk 0:02:25.6]}
12... Bh6 {[%clk 0:02:34.9]} 13. Kc2 {[%clk 0:02:21.6]} 13... h4 {[%clk
0:02:31.7]} 14. Be2 {[%clk 0:02:18.8]} 14... Ke7 {[%clk 0:02:17.6]} 15. Bg4
{[%clk 0:02:14.1]} 15... Bxe3 {[%clk 0:02:17.9]} 16. fxe3 {[%clk 0:02:13.6]}
16... Nb6 {[%clk 0:02:18.4]} 17. Rhf1 {[%clk 0:01:45.3]} 17... Rad8 {[%clk
0:02:07.3]} 18. Rde1 {[%clk 0:01:43.1]} 18... Rd6 {[%clk 0:01:57]} 19. Rf5
{[%clk 0:01:41.8]} 19... Nd7 {[%clk 0:01:55.5]} 20. Ref1 {[%clk 0:01:38.5]}
20... c5 {[%clk 0:01:52.4]} 21. R5f3 {[%clk 0:01:08.9]} 21... Rd8 {[%clk
0:01:38.2]} 22. Bxd7 {[%clk 0:01:00.7]} 22... R8xd7 {[%clk 0:01:37.9]} 23. dxe5
{[%clk 0:00:58.9]} 23... Rd2+ {[%clk 0:01:36.9]} 24. Kb3 {[%clk 0:00:58.9]}
24... Rxg2 {[%clk 0:01:36.4]} 25. exf6+ {[%clk 0:00:58.1]} 25... Ke6 {[%clk
0:01:32.9]} 26. R1f2 {[%clk 0:00:57.8]} 26... Rd2 {[%clk 0:01:06.2]} 27. Rxd2
{[%clk 0:00:55.3]} 27... Rxd2 {[%clk 0:01:06]} 28. Rf4 {[%clk 0:00:54.8]} 28...
Rd3 {[%clk 0:00:59.4]} 29. Rxh4 {[%clk 0:00:23.5]} 29... Rxe3 {[%clk 0:00:58.2]}
30. Kc4 {[%clk 0:00:21]} 30... b6 {[%clk 0:00:54.9]} 31. a4 {[%clk 0:00:21]}
31... Kxf6 {[%clk 0:00:50.7]} 32. Kb5 {[%clk 0:00:19.6]} 32... Re7 {[%clk
0:00:44.7]} 33. Rg4 {[%clk 0:00:16.3]} 33... Ke5 {[%clk 0:00:39.4]} 34. h4
{[%clk 0:00:14.4]} 34... f5 {[%clk 0:00:38.8]} 35. Rg1 {[%clk 0:00:14.9]} 35...
Rf7 {[%clk 0:00:36.5]} 36. h5 {[%clk 0:00:14.5]} 36... f4 {[%clk 0:00:36.8]} 37.
h6 {[%clk 0:00:14.9]} 37... Rh7 {[%clk 0:00:36.3]} 38. Rh1 {[%clk 0:00:11.5]}
38... f3 {[%clk 0:00:33.6]} 39. Kc4 {[%clk 0:00:11.5]} 39... Ke4 {[%clk
0:00:33.9]} 40. Rh4+ {[%clk 0:00:10.5]} 40... Ke3 {[%clk 0:00:34.1]} 41. Kd5
{[%clk 0:00:07.4]} 41... f2 {[%clk 0:00:33.9]} 42. Rh1 {[%clk 0:00:07.3]} 42...
Rxh6 {[%clk 0:00:25.5]} 43. Rxh6 {[%clk 0:00:06.4]} 43... f1=Q {[%clk
0:00:25.7]} 0-1

[Event "*** Titled Tuesday Blitz"]
[Site "Chess.com"]
[Date "2020.12.29"]
[Round "7"]
[White "1977Ivan"]
[Black "Alexandr_Kholin"]
[Result "0-1"]
[WhiteElo "2693"]
[BlackElo "2560"]
[TimeControl "180+1"]
[EndTime "11:17:05 PST"]
[Termination "Alexandr_Kholin won on time"]

1. d4 {[%clk 0:03:00.9]} 1... d5 {[%clk 0:02:57.8]} 2. Nc3 {[%clk 0:03:01]} 2...
Nf6 {[%clk 0:02:54.9]} 3. Bf4 {[%clk 0:03:01.4]} 3... a6 {[%clk 0:02:50.7]} 4.
e3 {[%clk 0:03:01.2]} 4... c5 {[%clk 0:02:49.4]} 5. dxc5 {[%clk 0:02:46.9]} 5...
Nc6 {[%clk 0:02:43.1]} 6. a3 {[%clk 0:02:40.8]} 6... e5 {[%clk 0:02:26.5]} 7.
Bg5 {[%clk 0:02:40]} 7... Be6 {[%clk 0:02:26.6]} 8. b4 {[%clk 0:02:34.5]} 8...
Be7 {[%clk 0:02:23.4]} 9. Nf3 {[%clk 0:02:24]} 9... O-O {[%clk 0:02:21.2]} 10.
Be2 {[%clk 0:02:21.9]} 10... Qc7 {[%clk 0:01:20.4]} 11. O-O {[%clk 0:02:09]}
11... Rad8 {[%clk 0:01:17.3]} 12. Na4 {[%clk 0:02:07.2]} 12... h6 {[%clk
0:01:14.9]} 13. Bxf6 {[%clk 0:01:42.3]} 13... Bxf6 {[%clk 0:01:15.8]} 14. Nb6
{[%clk 0:01:42.4]} 14... Rfe8 {[%clk 0:01:00.7]} 15. Rb1 {[%clk 0:01:35.9]}
15... g6 {[%clk 0:00:56.3]} 16. Re1 {[%clk 0:01:27.3]} 16... e4 {[%clk
0:00:54.3]} 17. Nd4 {[%clk 0:01:25.8]} 17... Nxd4 {[%clk 0:00:54.2]} 18. exd4
{[%clk 0:01:25.3]} 18... Qf4 {[%clk 0:00:52.5]} 19. g3 {[%clk 0:01:20.9]} 19...
Qg5 {[%clk 0:00:50]} 20. c3 {[%clk 0:01:13.8]} 20... h5 {[%clk 0:00:47.4]} 21.
h4 {[%clk 0:01:04.2]} 21... Qf5 {[%clk 0:00:47.4]} 22. Bf1 {[%clk 0:01:04.1]}
22... Kg7 {[%clk 0:00:40.7]} 23. Rb2 {[%clk 0:01:03.9]} 23... Rh8 {[%clk
0:00:40.2]} 24. f4 {[%clk 0:00:49.1]} 24... exf3 {[%clk 0:00:39.9]} 25. Rf2
{[%clk 0:00:49.5]} 25... g5 {[%clk 0:00:36.3]} 26. Rxf3 {[%clk 0:00:36.9]} 26...
Qg4 {[%clk 0:00:33.5]} 27. hxg5 {[%clk 0:00:16.2]} 27... Bxg5 {[%clk 0:00:31.5]}
28. Rxe6 {[%clk 0:00:02.8]} 28... fxe6 {[%clk 0:00:27.2]} 29. Bg2 {[%clk
0:00:02.5]} 29... Rdf8 {[%clk 0:00:24.9]} 30. Nd7 {[%clk 0:00:02]} 30... Rxf3
{[%clk 0:00:16.2]} 31. Qxf3 {[%clk 0:00:02.9]} 31... Qxf3 {[%clk 0:00:15.7]} 32.
Bxf3 {[%clk 0:00:03.8]} 32... Bd2 {[%clk 0:00:14.4]} 33. Kf2 {[%clk 0:00:04.2]}
33... Bxc3 {[%clk 0:00:14.3]} 34. Ke3 {[%clk 0:00:04.8]} 34... Bb2 {[%clk
0:00:14.8]} 35. a4 {[%clk 0:00:04]} 35... h4 {[%clk 0:00:15.3]} 36. gxh4 {[%clk
0:00:02.7]} 36... Rxh4 {[%clk 0:00:16.2]} 37. b5 {[%clk 0:00:02.5]} 37... Bxd4+
{[%clk 0:00:16.2]} 38. Kd3 {[%clk 0:00:02.5]} 38... axb5 {[%clk 0:00:17.1]} 39.
axb5 {[%clk 0:00:02.9]} 39... Kf7 {[%clk 0:00:15.9]} 0-1

[Event "*** Titled Tuesday Blitz"]
[Site "Chess.com"]
[Date "2020.12.29"]
[Round "7"]
[White "Isajevsky_Anton"]
[Black "Ze-Pequeno"]
[Result "1-0"]
[WhiteElo "2582"]
[BlackElo "2346"]
[TimeControl "180+1"]
[EndTime "11:17:06 PST"]
[Termination "Isajevsky_Anton won by checkmate"]

1. c4 {[%clk 0:02:58.7]} 1... Nf6 {[%clk 0:02:59.2]} 2. Nc3 {[%clk 0:02:58.1]}
2... c5 {[%clk 0:02:59.1]} 3. Nf3 {[%clk 0:02:58]} 3... e6 {[%clk 0:02:58.9]} 4.
g3 {[%clk 0:02:56.6]} 4... b6 {[%clk 0:02:58.6]} 5. Bg2 {[%clk 0:02:57]} 5...
Bb7 {[%clk 0:02:59.1]} 6. O-O {[%clk 0:02:55.7]} 6... Be7 {[%clk 0:02:59.4]} 7.
d3 {[%clk 0:02:52.3]} 7... O-O {[%clk 0:02:58.5]} 8. e4 {[%clk 0:02:52.3]} 8...
d6 {[%clk 0:02:57.8]} 9. Ng5 {[%clk 0:02:51.8]} 9... h6 {[%clk 0:02:52.6]} 10.
Nh3 {[%clk 0:02:51.1]} 10... Nc6 {[%clk 0:02:47.7]} 11. f4 {[%clk 0:02:51.2]}
11... Qd7 {[%clk 0:02:21.7]} 12. g4 {[%clk 0:02:39.8]} 12... Nh7 {[%clk
0:02:14.7]} 13. Bd2 {[%clk 0:01:54.9]} 13... Rad8 {[%clk 0:02:05.9]} 14. Kh1
{[%clk 0:01:23.8]} 14... Nd4 {[%clk 0:02:00]} 15. f5 {[%clk 0:01:22.3]} 15... a6
{[%clk 0:01:41.7]} 16. Rc1 {[%clk 0:01:11.8]} 16... b5 {[%clk 0:01:11.5]} 17.
Qe1 {[%clk 0:01:10.1]} 17... b4 {[%clk 0:01:10.2]} 18. Ne2 {[%clk 0:00:58.5]}
18... Nxe2 {[%clk 0:01:10]} 19. Qxe2 {[%clk 0:00:58.3]} 19... d5 {[%clk
0:01:10.4]} 20. cxd5 {[%clk 0:00:56.8]} 20... exd5 {[%clk 0:01:07.8]} 21. e5
{[%clk 0:00:57]} 21... d4 {[%clk 0:00:54]} 22. b3 {[%clk 0:00:44.9]} 22... Bxg2+
{[%clk 0:00:45.3]} 23. Qxg2 {[%clk 0:00:45.8]} 23... Qd5 {[%clk 0:00:44.8]} 24.
Nf4 {[%clk 0:00:44.4]} 24... Qxe5 {[%clk 0:00:43.5]} 25. Rce1 {[%clk 0:00:42.8]}
25... Qd6 {[%clk 0:00:41.4]} 26. Nh5 {[%clk 0:00:37.5]} 26... Bg5 {[%clk
0:00:36.1]} 27. f6 {[%clk 0:00:31.1]} 27... g6 {[%clk 0:00:35.7]} 28. h4 {[%clk
0:00:25]} 28... Bxd2 {[%clk 0:00:26.9]} 29. Qxd2 {[%clk 0:00:24]} 29... Qd5+
{[%clk 0:00:25.9]} 30. Re4 {[%clk 0:00:22.7]} 30... g5 {[%clk 0:00:12.1]} 31.
Rf5 {[%clk 0:00:21.1]} 31... Qc6 {[%clk 0:00:09.8]} 32. hxg5 {[%clk 0:00:21.6]}
32... hxg5 {[%clk 0:00:09.1]} 33. Rxg5+ {[%clk 0:00:21]} 33... Kh8 {[%clk
0:00:09.6]} 34. Rg7 {[%clk 0:00:19.2]} 34... Rg8 {[%clk 0:00:05.7]} 35. Qh6
{[%clk 0:00:18.4]} 35... Qxe4+ {[%clk 0:00:05.9]} 36. dxe4 {[%clk 0:00:17.9]}
36... Rxg7 {[%clk 0:00:04.6]} 37. Qxg7# {[%clk 0:00:07]} 1-0

[Event "*** Titled Tuesday Blitz"]
[Site "Chess.com"]
[Date "2020.12.29"]
[Round "7"]
[White "maximnovik"]
[Black "Khusenkhojaev"]
[Result "1-0"]
[WhiteElo "2605"]
[BlackElo "2430"]
[TimeControl "180+1"]
[EndTime "11:17:09 PST"]
[Termination "maximnovik won by checkmate"]

1. d4 {[%clk 0:03:00.9]} 1... Nf6 {[%clk 0:02:59.2]} 2. Bg5 {[%clk 0:03:00.2]}
2... Ne4 {[%clk 0:02:57.2]} 3. Bh4 {[%clk 0:02:59.7]} 3... d5 {[%clk 0:02:55.8]}
4. f3 {[%clk 0:03:00]} 4... Nd6 {[%clk 0:02:52.4]} 5. Nc3 {[%clk 0:03:00.4]}
5... Nf5 {[%clk 0:02:35.5]} 6. Bf2 {[%clk 0:02:58.6]} 6... c5 {[%clk 0:02:35.5]}
7. dxc5 {[%clk 0:02:58.1]} 7... d4 {[%clk 0:02:35.5]} 8. e4 {[%clk 0:02:56.8]}
8... dxe3 {[%clk 0:02:31.8]} 9. Qxd8+ {[%clk 0:02:55.5]} 9... Kxd8 {[%clk
0:02:30.5]} 10. O-O-O+ {[%clk 0:02:55]} 10... Nd7 {[%clk 0:02:26.6]} 11. Be1
{[%clk 0:02:46.8]} 11... e6 {[%clk 0:02:16]} 12. g4 {[%clk 0:02:44.4]} 12... Nh6
{[%clk 0:02:14.8]} 13. Ne4 {[%clk 0:02:36.4]} 13... f5 {[%clk 0:01:39.3]} 14.
Bh4+ {[%clk 0:02:15.7]} 14... Kc7 {[%clk 0:01:31.5]} 15. Nd6 {[%clk 0:01:11.5]}
15... Kc6 {[%clk 0:01:31.2]} 16. b4 {[%clk 0:01:07.4]} 16... a5 {[%clk 0:01:23]}
17. Bb5+ {[%clk 0:01:02.8]} 17... Kc7 {[%clk 0:01:19.9]} 18. Ne8+ {[%clk
0:01:02]} 18... Kb8 {[%clk 0:01:16.6]} 19. Bxd7 {[%clk 0:01:00.8]} 19... axb4
{[%clk 0:01:01.7]} 20. Bg3+ {[%clk 0:00:58]} 20... Ka7 {[%clk 0:01:01]} 21. Nc7
{[%clk 0:00:49.7]} 21... Bxc5 {[%clk 0:00:51.8]} 22. Nxa8 {[%clk 0:00:45.2]}
22... Kxa8 {[%clk 0:00:32.3]} 23. gxf5 {[%clk 0:00:42.1]} 23... Nxf5 {[%clk
0:00:21.3]} 24. Ne2 {[%clk 0:00:42.2]} 24... g5 {[%clk 0:00:11.4]} 25. Be5
{[%clk 0:00:41.5]} 25... Rd8 {[%clk 0:00:07.8]} 26. Bxc8 {[%clk 0:00:39.6]}
26... Rxc8 {[%clk 0:00:07.6]} 27. Kb2 {[%clk 0:00:39.9]} 27... h6 {[%clk
0:00:05.8]} 28. Rd7 {[%clk 0:00:39.4]} 28... Nh4 {[%clk 0:00:03.8]} 29. f4
{[%clk 0:00:38.8]} 29... Nf3 {[%clk 0:00:03.6]} 30. Rhd1 {[%clk 0:00:38.6]}
30... Bb6 {[%clk 0:00:03.2]} 31. R1d6 {[%clk 0:00:36.8]} 31... Nxe5 {[%clk
0:00:03]} 32. Rxb6 {[%clk 0:00:30.6]} 32... Nc4+ {[%clk 0:00:01.8]} 33. Kb3
{[%clk 0:00:30.1]} 33... Nxb6 {[%clk 0:00:02.7]} 34. Rd6 {[%clk 0:00:25.6]}
34... Nd5 {[%clk 0:00:03]} 35. fxg5 {[%clk 0:00:23.1]} 35... hxg5 {[%clk
0:00:03.9]} 36. Rxe6 {[%clk 0:00:22.7]} 36... Rf8 {[%clk 0:00:01.7]} 37. Re5
{[%clk 0:00:20.5]} 37... Rf2 {[%clk 0:00:01.9]} 38. Nd4 {[%clk 0:00:20.1]} 38...
Nf4 {[%clk 0:00:02.3]} 39. Nb5 {[%clk 0:00:18.7]} 39... Rxh2 {[%clk 0:00:03.2]}
40. Re8# {[%clk 0:00:18.3]} 1-0

[Event "*** Titled Tuesday Blitz"]
[Site "Chess.com"]
[Date "2020.12.29"]
[Round "7"]
[White "anon102030"]
[Black "Son_of_Sultan"]
[Result "0-1"]
[WhiteElo "2689"]
[BlackElo "2560"]
[TimeControl "180+1"]
[EndTime "11:17:10 PST"]
[Termination "Son_of_Sultan won on time"]

1. e4 {[%clk 0:03:00.9]} 1... c5 {[%clk 0:02:57]} 2. Nc3 {[%clk 0:03:00.4]} 2...
Nc6 {[%clk 0:02:55.4]} 3. g3 {[%clk 0:03:01]} 3... g6 {[%clk 0:02:54.6]} 4. Bg2
{[%clk 0:03:01.3]} 4... Bg7 {[%clk 0:02:55.1]} 5. d3 {[%clk 0:03:02]} 5... d6
{[%clk 0:02:49.4]} 6. Be3 {[%clk 0:03:01.9]} 6... Nf6 {[%clk 0:02:48.4]} 7. h3
{[%clk 0:03:01.9]} 7... O-O {[%clk 0:02:48.1]} 8. Nf3 {[%clk 0:02:58.9]} 8...
Rb8 {[%clk 0:02:46.2]} 9. d4 {[%clk 0:02:58.1]} 9... cxd4 {[%clk 0:02:43.7]} 10.
Nxd4 {[%clk 0:02:59]} 10... a6 {[%clk 0:02:34.4]} 11. O-O {[%clk 0:02:57.6]}
11... Bd7 {[%clk 0:02:26.5]} 12. Qd2 {[%clk 0:02:38.8]} 12... Nxd4 {[%clk
0:02:22.7]} 13. Bxd4 {[%clk 0:02:38.3]} 13... Bc6 {[%clk 0:02:20.6]} 14. Rfe1
{[%clk 0:02:34.5]} 14... Nd7 {[%clk 0:02:18]} 15. Nd5 {[%clk 0:02:26.4]} 15...
Bxd4 {[%clk 0:01:42.5]} 16. Qxd4 {[%clk 0:02:25]} 16... b5 {[%clk 0:01:33.5]}
17. f4 {[%clk 0:02:14.6]} 17... Re8 {[%clk 0:01:21.9]} 18. Rad1 {[%clk
0:02:09.5]} 18... Bxd5 {[%clk 0:01:18.9]} 19. exd5 {[%clk 0:02:08.1]} 19... Qb6
{[%clk 0:01:18.2]} 20. Re2 {[%clk 0:01:52.9]} 20... Kf8 {[%clk 0:01:14.9]} 21.
Kf2 {[%clk 0:01:39.1]} 21... Qxd4+ {[%clk 0:01:12.2]} 22. Rxd4 {[%clk 0:01:40]}
22... Nb6 {[%clk 0:01:05.4]} 23. h4 {[%clk 0:01:18.5]} 23... Rec8 {[%clk
0:01:00]} 24. c3 {[%clk 0:01:14.4]} 24... Rc4 {[%clk 0:00:55.2]} 25. Rd3 {[%clk
0:00:53.4]} 25... Rbc8 {[%clk 0:00:50]} 26. Ke1 {[%clk 0:00:47.1]} 26... b4
{[%clk 0:00:45.4]} 27. cxb4 {[%clk 0:00:44.4]} 27... Rxb4 {[%clk 0:00:46.3]} 28.
b3 {[%clk 0:00:44.2]} 28... a5 {[%clk 0:00:43.8]} 29. a3 {[%clk 0:00:35.1]}
29... Rb5 {[%clk 0:00:40.8]} 30. Red2 {[%clk 0:00:31.2]} 30... Rc1+ {[%clk
0:00:36.7]} 31. Kf2 {[%clk 0:00:29.3]} 31... Rb1 {[%clk 0:00:36.3]} 32. Rc3
{[%clk 0:00:12.4]} 32... R1xb3 {[%clk 0:00:36]} 33. Rdc2 {[%clk 0:00:09.4]}
33... Rxc3 {[%clk 0:00:34.5]} 34. Rxc3 {[%clk 0:00:10.3]} 34... a4 {[%clk
0:00:32.7]} 35. Rd3 {[%clk 0:00:07]} 35... Rb3 {[%clk 0:00:31.2]} 36. Rd4 {[%clk
0:00:05.9]} 36... Rxa3 {[%clk 0:00:30.4]} 37. Bf1 {[%clk 0:00:05.1]} 37... Rb3
{[%clk 0:00:27.5]} 38. Rd1 {[%clk 0:00:02.3]} 38... a3 {[%clk 0:00:27.1]} 39.
Ra1 {[%clk 0:00:03.2]} 39... Rb2+ {[%clk 0:00:25.5]} 40. Ke3 {[%clk 0:00:03.4]}
40... a2 {[%clk 0:00:25.2]} 41. Kd4 {[%clk 0:00:02.7]} 41... Rf2 {[%clk
0:00:20.6]} 0-1